Cogmind - Beta 14 @@@ ROGUE MODE // 2024.08.16 @ 18:08:30 Player: f3-rnm Result: Destroyed by P-70 Sage with Tesla Rifle Performance ------------- Evolutions (5) 2500 Regions Visited (12) 2400 Robots Destroyed (104) 520 Value Destroyed (4226) 4226 Prototype IDs (32) 640 Alien Tech Used (0) 0 Bonus (3458) 3458 TOTAL SCORE: 13744 Bonus ------- High Alert Combat Kills 488 Follower Combat Kills 2491 Network Hubs Disabled 200 Registered with UFD 300 Built Enhanced Grunts 300 Met R17 at Cetus 500 Friendly Fire -821 Cogmind --------- Core Integrity 0/1000 Matter 280/300 Energy 70/100 System Corruption 6% Temperature Cool (0) Movement Core (50) Location -5/Factory Parts ------- > --- POWER (2) -------- (None) > --- PROPULSION (7) --- (None) > --- UTILITY (6) ------ (None) > --- WEAPON (2) ------- (None) > --- INVENTORY (5) ---- Micro Fission Core Micro Fission Core Centrium Medium Armor Plating DRS Beacon (Ready) Peak State ------------ > --- POWER ------------ Micro Nuclear Core Meta Core > --- PROPULSION ------- Improved Medium Treads Improved Medium Treads Centrium Heavy Treads Centrium Heavy Treads > --- UTILITY ---------- Advanced Heat Sink Advanced Cooling System Huge Storage Unit Enhanced Optical Array Improved Terrain Scan Processor Centrium Medium Armor Plating Improved Hacking Suite > --- WEAPON ----------- Advanced Variable Charge Gun Advanced Variable Charge Gun Ripper > --- INVENTORY -------- Compact Particle Reactor Centrium Heavy Treads Centrium Heavy Treads Wheel Combat Airjet Large Storage Unit Energy Well Matter Compressor Advanced Sensor Array Improved Signal Interpreter Improved Terrain Scanner Improved Weapon Shielding Centrium Medium Armor Plating Centrium Medium Armor Plating EM Disruption Field Improved Hacking Suite Improved Hacking Suite Heavy Missile Launcher Junk Cannon DRS Beacon [Rating: 130] Favorites ----------- Power Meta Core Engine Light Ion Engine Power Core Meta Core Reactor Compact Particle Reactor Propulsion Light Treads Treads Light Treads Wheel Overtuned Scrapsphere Hover Unit Aerolev Unit Utility Improved Heat Sink Device Improved Heat Sink Storage High-capacity Storage Unit Processor Improved Terrain Scan Processor Hackware Improved Hacking Suite Protection Hardened Medium Armor Plating Weapon Ripper Energy Gun Advanced Variable Charge Gun Energy Cannon Advanced Beam Cannon Ballistic Gun Light Assault Rifle Ballistic Cannon Light Cannon Launcher Heavy Missile Launcher Special Weapon Junk Cannon Slashing Weapon Ripper Build | -11 -10 -10 -8 -8 -8 -8 -6 -6 -6 -6 -6 -5 ------- Run | Yrd Mat Sub Mat Sto Rec Scr Fac Ext Cet Arc Hub Fac Slots Evolved 10 | . . . 4 . . . 4 . . . . 2 Power 1 | . . . . . . . . . . . . 1 Propulsion 5 | . . . 1 . . . 3 . . . . 1 Utility 4 | . . . 3 . . . 1 . . . . . Weapon . | . . . . . . . . . . . . . Parts Attached 164 | 6 . 13 33 12 3 5 12 25 10 8 7 30 Power 11 | 1 . 3 2 1 . . . . . . . 4 Engine 6 | 1 . 3 2 . . . . . . . . . Core 4 | . . . . 1 . . . . . . . 3 Reactor 1 | . . . . . . . . . . . . 1 Propulsion 40 | 2 . 3 11 1 2 4 3 4 2 2 3 3 Treads 24 | 2 . 1 7 1 2 . . 2 2 2 3 2 Leg . | . . . . . . . . . . . . . Wheel 3 | . . 2 . . . . . 1 . . . . Hover 13 | . . . 4 . . 4 3 1 . . . 1 Flight . | . . . . . . . . . . . . . Utility 47 | 1 . 2 9 4 1 . 5 7 5 3 2 8 Device 16 | . . 2 4 2 . . 2 . 2 1 1 2 Storage 7 | 1 . . 3 . . . 1 1 . . . 1 Processor 4 | . . . . . . . 1 . 1 . . 2 Hackware 3 | . . . . . . . . . . . 1 2 Protection 17 | . . . 2 2 1 . 1 6 2 2 . 1 Artifact . | . . . . . . . . . . . . . Weapon 66 | 2 . 5 11 6 . 1 4 14 3 3 2 15 Energy Gun 19 | 1 . 1 5 2 . . . . 2 2 1 5 Energy Cannon 4 | . . 1 1 2 . . . . . . . . Ballistic Gun 7 | 1 . 3 2 1 . . . . . . . . Ballistic Cannon 3 | . . . 2 . . . . 1 . . . . Launcher 4 | . . . . . . . 1 . . . 1 2 Special Weapon 22 | . . . . . . 1 1 12 1 1 . 6 Impact Weapon . | . . . . . . . . . . . . . Slashing Weapon 7 | . . . 1 1 . . 2 1 . . . 2 Piercing Weapon . | . . . . . . . . . . . . . Special Melee Weapon . | . . . . . . . . . . . . . Unidentified Prototypes 11 | . . . 1 2 . 1 1 . 3 . . 3 Corrupted Parts 1 | . . . . . . . . 1 . . . . System Corruption 3 | . . . . . . . . 3 . . . . Parts Lost 46 | . . 5 16 8 . . . 6 2 . . 9 Power 7 | . . 2 2 1 . . . . . . . 2 Propulsion 18 | . . 2 6 1 . . . 5 1 . . 3 Utility 11 | . . . 3 3 . . . 1 1 . . 3 Weapon 10 | . . 1 5 3 . . . . . . . 1 Highest Loss Streak 14 | . . 4 14 5 . . . 4 1 . . 2 To Critical Strikes 2 | . . . . . . . . . 1 . . 1 Average Slot Usage (%) 80 | . 85 86 75 81 77 77 82 80 85 86 88 63 Engine 3 | . 14 13 7 3 . . . . . . . . Core 4 | . . . . 3 7 7 5 5 5 5 5 7 Treads 16 | . 28 27 13 23 21 14 . 4 9 22 23 18 Hover 6 | . . . 2 . . 9 33 17 7 . . . Device 11 | . . 2 12 15 14 14 14 15 9 11 17 4 Storage 7 | . 14 14 9 7 7 7 5 5 5 5 5 4 Processor 3 | . . . . . . . 3 5 9 11 8 5 Protection 8 | . . . 8 10 13 14 12 11 12 10 5 4 Energy Gun 3 | . 14 8 2 1 . . . . 8 9 10 2 Energy Cannon 3 | . . 5 5 7 14 8 . . . . . . Ballistic Gun 2 | . 14 13 3 1 . . . . . . . . Special Weapon 1 | . . . . . . 2 . 4 . . . 2 Slashing Weapon 2 | . . . 1 . . . 6 5 5 5 5 1 Peak Build Rating 130 | 6 6 14 28 40 41 60 69 76 123 124 123 130 Average Rating 54 | 4 6 8 19 31 40 47 62 63 91 121 119 102 On Entrance 53 | . 6 6 14 23 39 41 60 69 69 123 123 123 Naked Turns 86 | . . . . . . . . . . . . 86 Heaviest Build 120 | 10 10 22 64 68 69 75 61 113 116 120 112 120 Greatest Support 220 | 40 40 40 60 60 60 60 48 55 160 206 220 220 Greatest Overweight (x) 14 | . . . 5 1 1 2 1 14 14 . . 2 Average Overweight (x) . | . . . . . 1 1 . 1 8 . . . Largest Inventory Capacity 25 | 8 8 8 20 20 20 20 20 25 25 25 25 25 Average Capacity 18 | 7 8 8 18 20 20 20 15 18 25 25 25 22 Most Carried 25 | 2 3 8 20 20 20 20 19 19 25 25 25 25 Average Carried 16 | 1 2 5 15 19 20 19 14 15 23 24 24 20 Final Capacity 25 | 8 8 8 20 20 20 20 15 25 25 25 25 5 Final Carried 25 | 2 3 6 20 20 20 19 15 19 25 25 25 4 Class Distribution -------------------- 51% | Mutant 40% | Scavenger-Mutant 5% | Sprinter Dominant Class ---------------- Mutant | -10/Materials Mutant | -10/Subcaves Scavenger-Mutant | -8/Materials Mutant | -8/Storage Mutant | -8/Recycling Scavenger-Mutant | -8/Scraptown Sprinter | -6/Factory Mutant | -6/Extension Scavenger-Mutant | -6/Cetus Scavenger-Mutant | -6/Archives Scavenger-Mutant | -6/Hub_04(d) Scavenger-Mutant | -5/Factory Resources | -11 -10 -10 -8 -8 -8 -8 -6 -6 -6 -6 -6 -5 ----------- Run | Yrd Mat Sub Mat Sto Rec Scr Fac Ext Cet Arc Hub Fac Matter Collected 2520 | 122 . 283 393 311 15 . 80 651 120 84 85 376 Remotely . | . . . . . . . . . . . . . Salvage Created 4775 | . 14 256 818 813 168 . 80 898 188 310 298 932 Parts 212 | . 1 17 41 33 10 . 6 33 8 28 11 24 Haulers Intercepted 6 | . . . 2 1 . . . . . . 2 1 Recyclers Shooed 4 | . . . 2 2 . . . . . . . . Parts Field Recycled . | . . . . . . . . . . . . . Retrieved Matter . | . . . . . . . . . . . . . Parts Self-Destructed 8 | . . 8 . . . . . . . . . . Prevented . | . . . . . . . . . . . . . Kills | -11 -10 -10 -8 -8 -8 -8 -6 -6 -6 -6 -6 -5 ------- Run | Yrd Mat Sub Mat Sto Rec Scr Fac Ext Cet Arc Hub Fac Combat Hostiles Destroyed 69 | . 1 7 13 14 3 . . 11 2 . 2 16 Melee 2 | . . . . . . . . 1 . . . 1 Guns 21 | . 1 4 8 5 . . . . . . 2 1 Cannons 30 | . . 3 5 9 3 . . 3 1 . . 6 AOE 2 | . . . . . . . . . . . . 2 Classes Destroyed 17 | . 1 2 5 1 . . 2 3 . . 1 2 Worker 2 | . . . 1 . . . . . . . 1 . Builder 5 | . . . 1 . . . 1 . . . 1 2 Hauler 6 | . . . 2 1 . . . . . . 2 1 Recycler 4 | . . . . 3 . . . 1 . . . . Mechanic 2 | . . . . . . . . . . . . 2 Operator 11 | . . . . . . . 1 1 . 9 . . Watcher 3 | . . . . . . . 1 1 1 . . . Swarmer 5 | . 1 . . 3 . . . 1 . . . . Grunt 33 | . . 1 9 6 . . . 4 . . 1 12 Duelist 3 | . . . . . . . . . . . 1 2 Protector 1 | . . . . . . . . . . . . 1 Sentry 16 | . . . 3 5 3 . . 4 . . . 1 Hunter 1 | . . . 1 . . . . . . . . . Behemoth 2 | . . . . . . . . 2 . . . . Cetus Guard 2 | . . . . . . . . . 2 . . . Subdweller 6 | . . 6 . . . . . . . . . . Scrapoid 1 | . . . . . . . . 1 . . . . Savage 1 | . . . . . . . . 1 . . . . Best Kill Streak 7 | . 1 2 7 4 1 . 1 2 1 2 2 5 Combat Bots Only 5 | . 1 2 5 4 1 . . 2 1 . 2 4 Max Kills in Single Turn 2 | . 1 1 2 1 1 . 1 1 1 1 2 2 Gunslinging 1 | . . . . . . . . . . . 1 . Exploded 1 | . . . . . . . . . . . . 1 Melee 1 | . . . . . . . . 1 . . . 1 Uniques/NPCs Destroyed . | . . . . . . . . . . . . . Combat | -11 -10 -10 -8 -8 -8 -8 -6 -6 -6 -6 -6 -5 -------- Run | Yrd Mat Sub Mat Sto Rec Scr Fac Ext Cet Arc Hub Fac Hostile Shots Fired 952 | . 5 79 182 100 2 . 10 245 39 13 40 237 Missed 304 | . . 23 49 24 1 . 5 93 15 5 7 82 Damage Taken 10715 | . 46 1118 2134 1134 17 . 43 1454 691 202 593 3283 Core 1998 | . 17 198 338 128 . . . 259 25 . 32 1001 Absorbed by Shields 191 | . . . . . . . . 191 . . . . Reduced by Siege Mode 37 | . . . . . . . . . 37 . . . Redirected to Shielding 116 | . . . . . . . 6 68 42 . . . Regen/Repaired (Parts) 138 | . . . . . . . . . . . . 138 Core Remaining (%) 47 | 100 . 14 . . . 15 . . . . 62 . Volleys Fired 317 | 1 2 45 62 62 8 . . 36 12 5 24 60 Largest 2 | 2 2 2 2 2 2 . . 1 2 2 2 2 Hottest 160 | 60 60 140 110 129 136 . . . 160 160 160 160 Shots Fired 503 | 2 4 82 108 106 17 . . 36 22 12 47 67 Gun 265 | 2 4 57 66 41 . . . . 20 12 46 17 Cannon 149 | . . 25 42 65 17 . . . . . . . Launcher 10 | . . . . . . . . . . . 1 9 Special 79 | . . . . . . . . 36 2 . . 41 Kinetic 141 | 1 2 35 48 55 . . . . . . . . Thermal 257 | 1 2 47 44 51 17 . . . 20 12 46 17 Explosive 10 | . . . . . . . . . . . 1 9 Electromagnetic 16 | . . . 16 . . . . . . . . . Impact 79 | . . . . . . . . 36 2 . . 41 Robot Hit Streak 20 | 2 1 9 14 20 3 . . 12 11 2 18 6 Robot Miss Streak 6 | . 1 4 6 3 3 . . 2 5 2 1 3 Penetration Max 1 | . . . 1 . . . . . . . . . Secondary Targets 5 | . . . 2 2 . . . . . . 1 . Max Gunslinging Chain 1 | . . . 1 1 . . . . . . 1 . Shots Hit Robots 357 | 2 1 49 66 76 9 . 4 36 14 22 27 51 Core Hits 139 | . 1 16 32 25 3 . 2 7 7 7 12 27 Critical Kills 2 | . . . . . . . . . 1 . . 1 Critical Parts Destroyed 12 | . . . . 1 . . . 3 . . . 8 Critical Strikes 19 | . . 1 . 3 . . . 3 1 . . 11 Burn 1 | . . . . 1 . . . . . . . . Destroy 2 | . . 1 . 1 . . . . . . . . Blast 1 | . . . . 1 . . . . . . . . Smash 14 | . . . . . . . . 3 1 . . 10 Sever 1 | . . . . . . . . . . . . 1 Melee Attacks 71 | . . . 5 3 . . 11 22 . 19 . 11 Impact . | . . . . . . . . . . . . . Slashing 71 | . . . 5 3 . . 11 22 . 19 . 11 Piercing . | . . . . . . . . . . . . . Sneak Attacks 19 | . . . . . . . 1 4 . 13 . 1 Combat Hostiles . | . . . . . . . . . . . . . Follow-up Attacks . | . . . . . . . . . . . . . Damage Inflicted 13804 | 21 10 920 1401 1477 206 . 229 2383 429 1569 972 4187 Guns 3516 | 21 10 533 794 548 . . . . 351 184 804 271 Cannons 2129 | . . 387 607 929 206 . . . . . . . Explosions 1090 | . . . . . . . . . . . 168 922 Melee 2655 | . . . . . . . 229 796 . 1385 . 245 Ramming 12 | . . . . . . . . . . . . 12 Kinetic 1622 | 9 10 345 662 596 . . . . . . . . Thermal 3905 | 12 . 575 621 881 206 . . . 351 184 804 271 Explosive 1090 | . . . . . . . . . . . 168 922 Electromagnetic 118 | . . . 118 . . . . . . . . . Impact 4402 | . . . . . . . . 1587 78 . . 2737 Slashing 2655 | . . . . . . . 229 796 . 1385 . 245 Piercing . | . . . . . . . . . . . . . Highest Corruption 6 | . . . . 1 1 . . 3 3 3 . 6 Average Corruption 2 | . . . . 1 1 . . 3 3 2 . 3 Corruption Purged 3 | . . . . . . . . . . 3 . . Corruption Blocked . | . . . . . . . . . . . . . Effects 70 | . . . . 3 10 . . 29 11 16 . 1 Message Errors 23 | . . . . 1 3 . . 8 1 10 . . Matter Fused 15 | . . . . . 1 . . 10 2 1 . 1 Heat Flow Errors 11 | . . . . 1 1 . . 6 3 . . . Energy Discharges 9 | . . . . . 1 . . 3 2 3 . . Data Loss (minor) 4 | . . . . 1 2 . . . 1 . . . Data Loss (major) 3 | . . . . . 1 . . 1 1 . . . Misfires 3 | . . . . . 1 . . . . 2 . . Alerts 2 | . . . . . . . . 1 1 . . . Overload Shots . | . . . . . . . . . . . . . Overflow Damage 2343 | . . . 21 17 . . 82 753 . 516 . 954 Projectiles 1470 | . . . 21 17 . . . 540 . . . 892 Explosions 16 | . . . . . . . . . . . . 16 Melee 857 | . . . . . . . 82 213 . 516 . 46 Knockbacks 19 | . . . 1 2 . . . 4 1 . . 11 Impact 15 | . . . . . . . . 4 1 . . 10 Kinetic 3 | . . . 1 2 . . . . . . . . Secondary 1 | . . . . . . . . . . . . 1 Self-Inflicted Damage 209 | . . . . . . . . . . . 33 176 Shots 4 | . . . . . . . . . . . 1 3 Rammed 3 | . . . . . . . . . . . . 3 Targets Rammed 3 | . . . . . . . . . . . . 3 Kicked . | . . . . . . . . . . . . . Crushed . | . . . . . . . . . . . . . Highest Temperature 297 | 20 20 104 127 219 64 . . 239 199 . 60 297 Average Temperature 60 | 15 15 36 50 94 39 . . 97 91 . 23 111 Received Heat Transfer 3027 | . . 240 1089 531 . . 18 387 90 9 24 639 Siege Activations 1 | . . . . . . . . . 1 . . . Total Turns 17 | . . . . . . . . . 17 . . . Longest Duration 17 | . . . . . . . . . 17 . . . Robots Corrupted 14 | . . . . . . . . 8 . . . 6 Combat Hostiles 13 | . . . . . . . . 7 . . . 6 Parts Fried 19 | . . . . . . . . 8 . . . 11 Impact Corruptions 33 | . . . . . . . . 13 . . . 20 Robots Melted 1 | . . . . . . . . . 1 . . . Combat Hostiles 1 | . . . . . . . . . 1 . . . Parts Melted 9 | . . 2 2 3 . . . . 2 . . . Heat Transferred 5965 | 25 . 818 1087 1519 370 . . . 481 222 1036 407 Parts Sabotaged . | . . . . . . . . . . . . . Parts Stolen . | . . . . . . . . . . . . . Parts Stripped . | . . . . . . . . . . . . . Power Chain Reactions . | . . . . . . . . . . . . . Alert | -11 -10 -10 -8 -8 -8 -8 -6 -6 -6 -6 -6 -5 ------- Run | Yrd Mat Sub Mat Sto Rec Scr Fac Ext Cet Arc Hub Fac Peak Influence 1288 | . 50 . 183 411 106 . 159 344 188 302 1288 1283 Initial 567 | . . . . 44 106 . . 77 105 . 49 567 Average 250 | . 16 . 61 211 44 . 62 186 77 191 756 797 Maximum Alert Level 4 | . . . . 2 . . . 1 . 1 4 4 Low Security (%) 60 | 100 100 . 100 28 100 . 100 59 100 49 8 . Level 1 23 | . . . . 70 . . . 40 . 50 32 . Level 2 5 | . . . . . . . . . . . 5 47 Level 3 4 | . . . . . . . . . . . 2 42 Level 4 5 | . . . . . . . . . . . 50 9 Level 5 . | . . . . . . . . . . . . . High Security . | . . . . . . . . . . . . . Max Security . | . . . . . . . . . . . . . Squads Dispatched 20 | . . . 1 . . . 1 4 . . 6 8 Investigation 6 | . . . 1 . . . . 3 . . 1 1 Extermination 3 | . . . . . . . 1 . . . 1 1 Reinforcement 5 | . . . . . . . . 1 . . 2 2 Assault 6 | . . . . . . . . . . . 2 4 Garrison . | . . . . . . . . . . . . . Intercept . | . . . . . . . . . . . . . Searches Triggered . | . . . . . . . . . . . . . Construction Impeded 3 | . . . . . . . . . . . 1 2 Haulers Reinforced . | . . . . . . . . . . . . . Active Scanning Responses . | . . . . . . . . . . . . . Cargo Convoy Interrupts . | . . . . . . . . . . . . . Stealth | -11 -10 -10 -8 -8 -8 -8 -6 -6 -6 -6 -6 -5 --------- Run | Yrd Mat Sub Mat Sto Rec Scr Fac Ext Cet Arc Hub Fac Distress Signals 12 | . . . 3 . . . . 3 2 . 3 1 Communications Jammed . | . . . . . . . . . . . . . Distress Signals . | . . . . . . . . . . . . . Times Spotted 222 | . 3 8 18 17 1 . 8 39 10 17 33 68 Peak Tracking Total 12 | . 3 2 9 8 1 . 6 6 5 3 6 12 Tactical Retreats 21 | . 1 . 1 2 . . 1 5 . . . 11 Traps | -11 -10 -10 -8 -8 -8 -8 -6 -6 -6 -6 -6 -5 ------- Run | Yrd Mat Sub Mat Sto Rec Scr Fac Ext Cet Arc Hub Fac Traps Triggered 8 | . . . . 1 . . . 6 . . . 1 Indirectly . | . . . . . . . . . . . . . Trap Hack Attempts . | . . . . . . . . . . . . . Triggered . | . . . . . . . . . . . . . Disarmed . | . . . . . . . . . . . . . Reprogrammed . | . . . . . . . . . . . . . Reused . | . . . . . . . . . . . . . Traps Extracted . | . . . . . . . . . . . . . Installed . | . . . . . . . . . . . . . Triggered 1 | . . . . . . . . . . . . 1 Machines | -11 -10 -10 -8 -8 -8 -8 -6 -6 -6 -6 -6 -5 ---------- Run | Yrd Mat Sub Mat Sto Rec Scr Fac Ext Cet Arc Hub Fac Machines Disabled 18 | . . 1 . 2 . . 1 8 . 3 2 1 Max in Single Turn 1 | . . 1 . 1 . . 1 1 . 1 . . Garrison Access 1 | . . . . . . . . . . . 1 . Network Hub 1 | . . . . . . . . . . . 1 . Machines Repaired . | . . . . . . . . . . . . . Machines Dismantled . | . . . . . . . . . . . . . Machines Sabotaged . | . . . . . . . . . . . . . Overloaded Fab Kills . | . . . . . . . . . . . . . Hacking | -11 -10 -10 -8 -8 -8 -8 -6 -6 -6 -6 -6 -5 --------- Run | Yrd Mat Sub Mat Sto Rec Scr Fac Ext Cet Arc Hub Fac Machines Accessed 30 | . . 2 2 2 . 2 6 9 . . 3 4 Terminals 17 | . . . 1 2 . . 4 7 . . 2 1 Fabricators 1 | . . . . . . . 1 . . . . . Repair Stations 1 | . . . . . . . . . . . . 1 Recycling Units 3 | . . . . . . . . 2 . . . 1 Scanalyzers 2 | . . . . . . . 1 . . . . 1 Garrison Access 2 | . . . 1 . . . . . . . 1 . Total Hacks 54 | . . 5 3 3 . 6 9 16 . . 5 7 Successful 32 | . . 5 1 2 . 6 4 7 . . 2 5 Failed 22 | . . . 2 1 . . 5 9 . . 3 2 Catastrophic 8 | . . . 1 . . . 1 4 . . 1 1 Database Lockouts . | . . . . . . . . . . . . . Manual 16 | . . . . 1 . . 1 7 1 . 3 3 Terminals 27 | . . . 1 3 . . 6 12 . . 3 2 Fabricators 1 | . . . . . . . 1 . . . . . Repair Stations 2 | . . . . . . . . . . . . 2 Recycling Units 5 | . . . . . . . . 4 . . . 1 Scanalyzers 4 | . . . . . . . 2 . . . . 2 Garrison Access 4 | . . . 2 . . . . . . . 2 . Terminal Hacks 23 | . . 5 1 2 . 6 3 5 . . 1 . Record 4 | . . 4 . . . . . . . . . . Robot Analysis 5 | . . . . . . 5 . . . . . . Prototype ID Bank 1 | . . . . . . . 1 . . . . . Open Door 3 | . . . . 1 . . 1 1 . . . . Branch Access Points 2 | . . . 1 1 . . . . . . . . Terminal Index 1 | . . . . . . . . . . . 1 . Alert Level 2 | . . . . . . . . 2 . . . . Maintenance Status 1 | . . . . . . . 1 . . . . . Surveillance Status 1 | . . . . . . . . 1 . . . . Recall Investigation 1 | . . . . . . . . 1 . . . . Derelict Proto ID Bank 2 | . . 1 . . . 1 . . . . . . Fabricator Hacks 1 | . . . . . . . 1 . . . . . Network Status 1 | . . . . . . . 1 . . . . . Repair Station Hacks 2 | . . . . . . . . . . . . 2 Scan Component 1 | . . . . . . . . . . . . 1 Repair 1 | . . . . . . . . . . . . 1 Recycling Unit Hacks . | . . . . . . . . . . . . . Scanalyzer 2 | . . . . . . . . . . . . 2 Insert Component 1 | . . . . . . . . . . . . 1 Analyze 1 | . . . . . . . . . . . . 1 Garrison Access Hacks . | . . . . . . . . . . . . . Unauthorized Hacks 4 | . . . . . . . . 2 . . 1 1 Terminals 1 | . . . . . . . . . . . 1 . Sabotage 1 | . . . . . . . . . . . 1 . Fabricators . | . . . . . . . . . . . . . Repair Stations 3 | . . . . . . . . 2 . . . 1 Recycling Units . | . . . . . . . . . . . . . Scrapoids 3 | . . . . . . . . 2 . . . 1 Scanalyzers . | . . . . . . . . . . . . . Garrison Access . | . . . . . . . . . . . . . Data Cores Recovered 1 | . . . . . . . 1 . . . . . Used 1 | . . . . . . . 1 . . . . . Hacking Detections 19 | . . . 1 1 . . 6 6 . . 2 3 Full Trace Events 2 | . . . 1 . . . . 1 . . . . Feedback Events . | . . . . . . . . . . . . . Feedback Blocked . | . . . . . . . . . . . . . Robot Schematics Acquired . | . . . . . . . . . . . . . Robots Built . | . . . . . . . . . . . . . Authchips . | . . . . . . . . . . . . . Time . | . . . . . . . . . . . . . Total Robot Build Rating . | . . . . . . . . . . . . . Part Schematics Acquired 1 | . . . . . . . . . . . . 1 Parts Built . | . . . . . . . . . . . . . Authchips . | . . . . . . . . . . . . . Time . | . . . . . . . . . . . . . Total Part Build Rating . | . . . . . . . . . . . . . Parts Repaired 1 | . . . . . . . . . . . . 1 Time 33 | . . . . . . . . . . . . 33 Parts Recycled . | . . . . . . . . . . . . . Recycled Matter . | . . . . . . . . . . . . . Retrieved Matter . | . . . . . . . . . . . . . Retrieved Components . | . . . . . . . . . . . . . Parts Scanalyzed 1 | . . . . . . . . . . . . 1 Part Schematics Acquired 1 | . . . . . . . . . . . . 1 Parts Damaged . | . . . . . . . . . . . . . Bothacking | -11 -10 -10 -8 -8 -8 -8 -6 -6 -6 -6 -6 -5 ------------ Run | Yrd Mat Sub Mat Sto Rec Scr Fac Ext Cet Arc Hub Fac Used RIF Installer . | . . . . . . . . . . . . . Robots Hacked . | . . . . . . . . . . . . . Non-combat . | . . . . . . . . . . . . . Combat . | . . . . . . . . . . . . . Robot Hacks Applied . | . . . . . . . . . . . . . Relay Couplers Released 2 | . . . . . . . . . . . 2 . Machine Destruction 2 | . . . . . . . . . . . 2 . Fabnet Peak Effective % . | . . . . . . . . . . . . . Robots Rewired 7 | . . . . . . . . 7 . . . . Allies Hacked . | . . . . . . . . . . . . . Hacks Repelled . | . . . . . . . . . . . . . Allies | -11 -10 -10 -8 -8 -8 -8 -6 -6 -6 -6 -6 -5 -------- Run | Yrd Mat Sub Mat Sto Rec Scr Fac Ext Cet Arc Hub Fac Total Allies 36 | . . . . . . . . 26 5 . . 5 Largest Group 16 | . . . . . . . . 16 10 6 6 5 Highest-Rated Group 591 | . . . . . . . . 591 501 501 498 235 Highest-Rated Ally 159 | . . . . . . . . 159 159 96 96 47 Total Orders 1 | . . . . . . . . . . . 1 . STAY 1 | . . . . . . . . . . . 1 . Ally Attacks 367 | . . . . . . . . 116 75 25 87 64 Total Damage 10054 | . . . . . . . . 1890 2202 957 3646 1359 Kills 71 | . . . . . . . . 20 7 4 32 8 Allies Corrupted 1 | . . . . . . . . 1 . . . . Allies Melted . | . . . . . . . . . . . . . Intel | -11 -10 -10 -8 -8 -8 -8 -6 -6 -6 -6 -6 -5 ------- Run | Yrd Mat Sub Mat Sto Rec Scr Fac Ext Cet Arc Hub Fac Robot Analysis Total 5 | . . . . . . 5 . . . . . . Derelict Logs Recovered 1 | . . 1 . . . . . . . . . . Drone Launches . | . . . . . . . . . . . . . Drone Recoveries . | . . . . . . . . . . . . . Exploration | -11 -10 -10 -8 -8 -8 -8 -6 -6 -6 -6 -6 -5 ------------- Run | Yrd Mat Sub Mat Sto Rec Scr Fac Ext Cet Arc Hub Fac Turns Passed 14419 | 77 1049 1588 797 751 1238 2180 275 3241 458 717 985 1063 Spaces Moved 6537 | 44 57 897 234 249 504 1055 553 1400 176 351 405 612 Core 250 | 6 . . . . . . . . . . . 244 Treads 3883 | 38 57 880 86 249 504 614 . 289 61 351 405 349 Legs . | . . . . . . . . . . . . . Wheels 273 | . . 17 121 . . . . 20 115 . . . Hover 2131 | . . . 27 . . 441 553 1091 . . . 19 Flight . | . . . . . . . . . . . . . Fastest Speed 27 | 50 160 100 105 160 240 158 30 27 160 160 160 40 Average Speed 161 | 145 160 158 163 219 240 205 30 161 190 160 160 112 Slowest Speed 350 | 160 160 160 350 240 240 240 90 320 240 160 160 160 Overloaded Moves . | . . . . . . . . . . . . . Propulsion Burnouts . | . . . . . . . . . . . . . Robots Hopped . | . . . . . . . . . . . . . Cave-ins Triggered . | . . . . . . . . . . . . . Exploration Rate (%) 44 | 4 10 47 27 48 94 71 13 71 57 80 36 15 Regions Visited 12 Branch Regions 8 Pre-discovered Areas 1 | . . 1 . . . . . . . . . . Known Exits Taken 3 | . . . 1 1 . . 1 . . . . . Unknown Exits Taken 9 | 1 1 1 . . 1 1 . 1 1 1 1 . Scrap Searched . | . . . . . . . . . . . . . Spaces Dug 20 | . . . 5 . . . 4 1 . . 6 4 Terrain Destroyed 121 | . . 3 9 . . . 4 2 5 1 20 77 Melee 13 | . . . 5 . . . 4 . . . . 4 Projectile 34 | . . 3 4 . . . . 2 5 1 10 9 AOE 74 | . . . . . . . . . . . 10 64 Terrain Rammed . | . . . . . . . . . . . . . Walls Destroyed . | . . . . . . . . . . . . . Machines Disabled . | . . . . . . . . . . . . . Actions | -11 -10 -10 -8 -8 -8 -8 -6 -6 -6 -6 -6 -5 --------- Run | Yrd Mat Sub Mat Sto Rec Scr Fac Ext Cet Arc Hub Fac Total 9826 | 54 1011 978 531 345 517 1067 647 2322 279 471 696 908 Wait 2380 | . 952 14 161 8 1 . 49 653 58 73 252 159 Move 6525 | 43 56 896 233 248 503 1054 552 1399 175 350 404 612 Hop . | . . . . . . . . . . . . . Pick Up 95 | 4 1 6 25 6 . 3 9 11 11 6 3 10 Fast Attach 55 | 4 . 5 15 3 3 1 2 7 5 4 . 6 Attach 83 | 2 . 3 15 7 . 4 9 14 2 4 1 22 Detach 40 | . . . 6 2 . . 4 12 2 . . 14 Swap 26 | . . 5 3 2 . . 1 4 3 . 6 2 Drop 77 | . . 4 6 4 2 5 11 9 11 10 6 9 Fire 317 | 1 2 45 62 62 8 . . 36 12 5 24 60 Melee 70 | . . . 5 3 . . 10 22 . 19 . 11 Ram 3 | . . . . . . . . . . . . 3 Kick . | . . . . . . . . . . . . . Crush . | . . . . . . . . . . . . . Escape Stasis 73 | . . . . . . . . 73 . . . . Rewire 82 | . . . . . . . . 82 . . . . Trap . | . . . . . . . . . . . . . Miscellaneous . | . . . . . . . . . . . . . Route ------- -11/Scrapyard -10/Materials -10/Subcaves -8/Materials (discovered 2 exits: *Sto x2) -8/Storage -8/Recycling (discovered 2 exits: *Fac / *Scr) -8/Scraptown -6/Factory (discovered 3 exits: [*Low] / *Ext x2) -6/Extension (discovered 3 exits: *Fac x2 / *Cet) -6/Cetus (discovered 2 exits: *Fac / [*Arc]) -6/Archives (discovered 3 exits: *Fac / *Hub x2) -6/Hub_04(d) -5/Factory History --------- Turn | Location | Event 4 | -11/Scrapyard | Discovered new exit (range 16) 78 | -11/Scrapyard | Entered Materials 307 | -10/Materials | Build established: Mutant 1094 | -10/Materials | Discovered new exit (range 6) 1127 | -10/Materials | Entered Subcaves 1239 | -10/Subcaves | A swath of the cavern ceiling suddenly collapsed 1262 | -10/Subcaves | Learned location of Recycling (-8) 1634 | -10/Subcaves | Visited Clippyterm 1639 | -10/Subcaves | Learned 40 Factory zone layouts 1639 | -10/Subcaves | Learned Factory garrison access intel 2071 | -10/Subcaves | Visited 4L-MR0's lab 2085 | -10/Subcaves | Found Meta Core 2401 | -10/Subcaves | Ambushed by Subdwellers from Twisted Machinery 2482 | -10/Subcaves | Discovered new exit (range 13) 2662 | -10/Subcaves | Core integrity fell below 50% 2674 | -10/Subcaves | Core integrity fell below 20% 2713 | -10/Subcaves | Lost 4 parts (1p2n1w) 2715 | -10/Subcaves | Entered Materials 2715 | -8/Materials | Evolved 4 slots: Propulsion x1, Utility x3 3049 | -8/Materials | Core integrity fell below 50% 3069 | -8/Materials | Lost 14 parts (2p6n2u4w) 3200 | -8/Materials | Identified exit to Storage 3438 | -8/Materials | Build established: Scavenger-Mutant 3512 | -8/Materials | Entered Storage 3670 | -8/Storage | Identified exit to Recycling 3853 | -8/Storage | Attached Meta Core, gained temporary slots: Propulsion, Utility, Weapon 3881 | -8/Storage | Core integrity fell below 20% 3902 | -8/Storage | Lost 5 parts (1p1n1u2w) 4254 | -8/Storage | Used back door to open Recycling access 4263 | -8/Storage | Entered Recycling 4310 | -8/Recycling | Build established: Mutant 4928 | -8/Recycling | Discovered new exit (range 6) 5328 | -8/Recycling | Build established: Scavenger-Mutant 5441 | -8/Recycling | Scanned before Scraplab entrance 5477 | -8/Recycling | Entered Scraplab 5496 | -8/Recycling | Discovered new exit (range 3) 5501 | -8/Recycling | Entered Scraptown 5501 | -8/Scraptown | System corruption cleaned by C-Scrubber 5895 | -8/Scraptown | Heard Great Nut preacher, LISTEN AND RECITE! 6087 | -8/Scraptown | Visited Fellowship of the Rings 6121 | -8/Scraptown | Visited Symbiants 6140 | -8/Scraptown | Visited CR-KLE's Repair Center 6217 | -8/Scraptown | Visited UFD Registry 6217 | -8/Scraptown | Registered with UFD as "Shockframe" 6277 | -8/Scraptown | Visited Science Guys 6310 | -8/Scraptown | Visited Curators Association 6358 | -8/Scraptown | Visited Junk Cannon Lab 6521 | -8/Scraptown | Visited Analyses Database 6553 | -8/Scraptown | Visited Derelict Rescue Squad 6593 | -8/Scraptown | Visited Observation Area 6675 | -8/Scraptown | Visited Chapter 10 6868 | -8/Scraptown | Found Prototype Special Weapon 6868 | -8/Scraptown | Identified Junk Cannon 6920 | -8/Scraptown | Visited Supply Room 7269 | -8/Scraptown | Build established: Mutant 7622 | -8/Scraptown | Found DRS Beacon 7673 | -8/Scraptown | Discovered new exit (range 3) 7681 | -8/Scraptown | Entered Factory 7681 | -6/Factory | Evolved 4 slots: Propulsion x3, Utility x1 7682 | -6/Factory | Identified exit to Extension 7683 | -6/Factory | Loaded intel: 4 garrison access locations 7829 | -6/Factory | Discovered new exit (range 15) 7956 | -6/Factory | Entered Extension 7986 | -6/Extension | Build established: Sprinter 8003 | -6/Extension | Rescued a captive Derelict 8140 | -6/Extension | Rescued a captive Derelict 8155 | -6/Extension | Rescued a captive Derelict 8251 | -6/Extension | Lost 6 allies 8545 | -6/Extension | Rescued a captive Derelict 8546 | -6/Extension | Rescued a captive Derelict 8549 | -6/Extension | Rescued a captive Derelict 8551 | -6/Extension | Rescued a captive Derelict 8737 | -6/Extension | Spotted B-75 Beast 8744 | -6/Extension | Destroyed B-75 Beast 8746 | -6/Extension | Spotted B-75 Beast 8775 | -6/Extension | Destroyed B-75 Beast 8809 | -6/Extension | Build established: Mutant 8841 | -6/Extension | Lost 4 parts (3n1u) 8983 | -6/Extension | Rescued A7 9867 | -6/Extension | Discovered new exit (range 16) 9949 | -6/Extension | Rescued a captive Derelict 10989 | -6/Extension | Scrapoid reinforcements arrived 11021 | -6/Extension | Scrapoid reinforcements arrived 11092 | -6/Extension | Lost 4 allies 11126 | -6/Extension | Discovered new exit (range 10) 11128 | -6/Extension | Discovered new exit (range 6) 11197 | -6/Extension | Entered Cetus 11197 | -6/Cetus | Accompanied by 10 allies (A7) 11202 | -6/Cetus | Acquired a Cetus Manufacturing Module code from A7 11213 | -6/Cetus | Build established: Commander-Mutant 11229 | -6/Cetus | Spotted Cetus Guard 11229 | -6/Cetus | Spotted Cetus Guard 11231 | -6/Cetus | Spotted Cetus Guard 11231 | -6/Cetus | Spotted Cetus Guard 11239 | -6/Cetus | Allies destroyed Cetus Guard 11252 | -6/Cetus | Extracted ID and sensor layout for unrecognized location from A7's data core 11253 | -6/Cetus | Allies destroyed Cetus Guard 11270 | -6/Cetus | Destroyed Cetus Guard 11298 | -6/Cetus | Lost 8 allies 11401 | -6/Cetus | Started Cetus Manufacturing Module 11426 | -6/Cetus | Manufactured an Enhanced Grunt 11434 | -6/Cetus | Discovered new exit (range 15) 11451 | -6/Cetus | Manufactured an Enhanced Grunt 11476 | -6/Cetus | Manufactured an Enhanced Grunt 11477 | -6/Cetus | Spotted Cetus Guard 11477 | -6/Cetus | Spotted Cetus Guard 11481 | -6/Cetus | Spotted Cetus Guard 11481 | -6/Cetus | Spotted Cetus Guard 11501 | -6/Cetus | Manufactured an Enhanced Grunt 11501 | -6/Cetus | Allies destroyed Cetus Guard 11504 | -6/Cetus | Destroyed Cetus Guard 11505 | -6/Cetus | Allies destroyed Cetus Guard 11509 | -6/Cetus | Allies destroyed Cetus Guard 11523 | -6/Cetus | Discovered new exit (range 16) 11526 | -6/Cetus | Manufactured an Enhanced Grunt 11535 | -6/Cetus | Build established: Scavenger-Mutant 11538 | -6/Cetus | Met Revision 17 11655 | -6/Cetus | Entered Archives 11655 | -6/Archives | Accompanied by 6 allies 11709 | -6/Archives | Discovered new exit (range 14) 11775 | -6/Archives | Discovered new exit (range 16) 11837 | -6/Archives | Discovered new exit (range 16) 12372 | -6/Archives | Entered Hub_04(d) 12372 | -6/Hub_04(d) | Accompanied by 6 allies 12542 | -6/Hub_04(d) | Discovered new exit (range 8) 13072 | -6/Hub_04(d) | First assault squad dispatched 13124 | -6/Hub_04(d) | Network Hub disabled 13357 | -6/Hub_04(d) | Entered Factory 13357 | -5/Factory | Evolved 2 slots: Power x1, Propulsion x1 13581 | -5/Factory | Repaired Adv. Variable Charge Gun 13657 | -5/Factory | First assault squad dispatched 14094 | -5/Factory | Scrapoid reinforcements arrived 14177 | -5/Factory | Lost 3 allies 14258 | -5/Factory | P-70 Sage assimilated allied 05F13-D 14279 | -5/Factory | Released all parts (10) 14361 | -5/Factory | Core integrity fell below 50% 14403 | -5/Factory | Core integrity fell below 20% 14420 | -5/Factory | Destroyed by P-70 Sage with Tesla Rifle Last Messages --------------- 14324_ Massive razor-sharp blades shoot up from within the floor. 14324_ Imp. Signal Interpreter severed. 14335_ T-07 Excavator is excavating. 14343_ System corrupted: Matter fused (-5). 14345_ Slug penetrates Neutrino Reactor. 14346_ Matter Pump disabled. 14348_ Slug penetrates Wall. 14360_ Penetrated by Slug. 14360_ Slug penetrates A-15 Conveyor. 14364_ Penetrated by Slug. 14408_ Slug penetrates Wall. 14416_ H-66 Slayer deploys Drone. 14416_ Slug penetrates Drone. 14416_ T-07 Excavator destroyed. 14416_ Penetrated by Slug. 14416_ Drone sends a signal. 14416_ H-66 Slayer retrieves Drone. 14417_ M-28 Smith repairs H-66 Slayer. 14417_ Linear Gravjet destroyed. 14418_ Penetrated by Slug. Map ----- +----------------------------------------------------+ | ???????# """ """ #?????# "S #?????????? | | ???????# #?????# """ """" #?????????? | | ???????# ####### "" """" #?????????? | | ???????# !!! # + """" #?????????? | | ???????# !! # # """" ??????????? | | ???????# !! # + """" ??????????? | | ???????# / # """" #?????????? | | ???????# # # #?????????? | | ???????# # # #?????????? | | ???????#######+###### # #?????????? | | ?????????????# # #?????????? | | ?????????????# ##############?????????? | | ?????????????# # * ???????????? | | ?????????????# + """ ??????????????? | | ?????????????# p # """"" ??????????????? | | ?????????????##### #??""""????????????????? | | ????????????######+## #???? ????????????????? | | ????????????# # = #??????????????????????? | | ????????????#! #h%* #??????????????????????? | | ????????????# """ # | #??????????????????????? | | ????????????# """ + #??????????????????????? | | ??????####### """ # #??????????????????????? | | ??????# # # #??????"???????????????? | | ?????## ######### #???? """??????????????? | | ?????# #??"" """ #?????????? | | ?????#T @# #?????????? | | ?????## k/ """ ?????????????? | | ??????# #"" """ ?????????????? | | ??????# #" """??????????????? | | ??????#########+##### #?F ??????????????? | | ???????# # #?? = ?????????????? | | ???????# # #??? ????????????? | | ???????# # #????#####?????????????? | | ???????# # #??????????????????????? | | ???????# # #??????????????????????? | | ???????# # ph#? ???????????????????? | | ???????# # #? ????????????????????? | | ???????# # # ?????????????????????? | | ???????# # m # ?????????????????????? | | ???????# # + ?????????????????????? | | ???????# # # ???????????????????? | | ???????# # #? ?????????????????? | | ???????############## #??? ????????????????? | | ??#??#?# # # ??? ?????????????????? | | ???????# = # ###########????????????? | | ????##?# % # # #????????????? | | ?#?????# # /% ! #????????????? | | ??#?#### "" "" + #% #????????????? | | #??????# "" "" # # #????????????? | | ???????# """ """ # # "" "" #????????????? | +----------------------------------------------------+ Best States ------------- Heat Dissipation 87 Energy Generation 33 Energy Capacity 250 Matter Stores 300 Matter Capacity 300 Sight Range 22 Terrain Scan Range 16 Terrain Scan Density 110 Armor Coverage 450 Utility Shielding 66 Weapon Shielding 66 Melee Speed Boost 20 Evasion (%) 59 Recoil Reduction 6 Salvage Targeting 4 Offensive Hacking 36 Item Schematics ----------------- Cmb. Airjet | -5/Factory | Scanalyzed Robot Schematics ------------------ None Fabricated ------------ Nothing Alien Tech Used ----------------- None Achievements -------------- None Challenges ------------ None Game ------ Seed SlugArmageddonClaymores Manual? 0 Play Time 01:18:40 Cumulative 239.6 hours Start 2024.08.16 @ 16:49:43 End 2024.08.16 @ 18:08:30 Sessions 1 Manual Loads 0 Difficulty Rogue Special Mode None Game No. 249 Rogue 213 Adventurer 36 Explorer 0 Win Type - Total 10 Types 3/0/7/0/0/0/0/0/0 Lore% 61 Gallery% 82 Achievement% 71 Wizard Run 0 Options --------- Layout 0 ASCII 0 Keyboard 0 Movement Mouse Keybinds 0 Fullscreen 1 Font 18/SmallcapsGlow Map View 76x50 Zoom Use 0% Tactical HUD 1 Map Filters NONE Filters NONE Steam 1 RUN: dd1f50bc-fb2d-4f86-a81b-c35d839900e4